[Event "ETCC Open 2013"]
[Site "Warsaw"]
[Date "2013.11.11"]
[Round "4"]
[White "Pantsulaia, Levan"]
[Black "Kotronias, Vasilios"]
[Result "*"]
[ECO "E67"]
[WhiteElo "2595"]
[BlackElo "2564"]
[PlyCount "191"]
[EventDate "2013.??.??"]
[EventCountry "POL"]
[WhiteTeam "Georgien"]
[BlackTeam "Griechenland"]
[WhiteTeamCountry "GEO"]
[BlackTeamCountry "GRE"]
[TimeControl "40/5400+30:1800+30"]

1. Nf3 {[%emt 0:00:00]} Nf6 {[%emt 0:00:00]} 2. g3 {[%emt 0:00:00]} g6 {[%emt
0:00:00]} 3. Bg2 {[%emt 0:00:00]} Bg7 {[%emt 0:00:00]} 4. c4 {[%emt 0:00:08]}
O-O {[%emt 0:00:00]} 5. O-O {[%emt 0:00:14]} d6 {[%emt 0:00:00]} 6. d4 {[%emt
0:00:34]} Nbd7 {[%emt 0:00:00]} 7. Nc3 {[%emt 0:00:14]} e5 {[%emt 0:00:03]} 8.
h3 {[%emt 0:00:19]} c6 {[%emt 0:00:03]} 9. e4 {[%emt 0:00:16]} Qb6 {[%emt 0:00:
05]} 10. c5 {[%emt 0:00:22]} dxc5 {[%emt 0:00:05]} 11. dxe5 {[%emt 0:00:05]}
Ne8 {[%emt 0:00:02]} 12. e6 {[%emt 0:00:06]} fxe6 {[%emt 0:00:04]} 13. Ng5 {
[%emt 0:00:05]} Ne5 {[%emt 0:00:12]} 14. f4 {[%emt 0:00:14]} Nf7 {[%emt 0:00:
03]} 15. Nxf7 {[%emt 0:00:09]} Bd4+ {[%emt 0:00:04]} 16. Kh2 {[%emt 0:00:07]}
Rxf7 {[%emt 0:00:05]} 17. e5 {[%emt 0:00:07]} Qc7 {[%emt 0:00:18]} 18. Ne4 {
[%emt 0:00:18]} b6 {[%emt 0:00:15]} 19. Qc2 {[%emt 0:00:23]} Ba6 {[%emt 0:00:
12]} 20. Rd1 {[%emt 0:00:06]} Rd8 {[%emt 0:00:14]} 21. a4 {[%emt 0:00:15]} c4 {
[%emt 0:22:32]} 22. Bf1 {[%emt 0:18:04]} c5 {[%emt 0:02:08]} 23. Bxc4 {[%emt 0:
04:45]} Bxc4 {[%emt 0:01:41]} 24. Qxc4 {[%emt 0:00:05]} Qc6 {[%emt 0:05:43]}
25. Qe2 {[%emt 0:08:51]} Kh8 {[%emt 0:10:32]} 26. Ra3 {[%emt 0:04:58]} Rfd7 {
[%emt 0:04:44]} 27. g4 {[%emt 0:21:42]} Rd5 {[%emt 0:16:45]} 28. Rf1 {[%emt 0:
01:07]} c4 {[%emt 0:02:24]} 29. Ng5 {[%emt 0:09:09]} Kg8 {[%emt 0:06:20]} 30.
Rg3 {[%emt 0:00:21]} Ng7 {[%emt 0:12:33]} 31. h4 {[%emt 0:01:00]} Bc5 {[%emt 0:
06:16]} 32. h5 {[%emt 0:05:01]} Rd3 {[%emt 0:00:39]} 33. Ne4 {[%emt 0:07:49]}
Be7 {[%emt 0:01:36]} 34. h6 {[%emt 0:07:06]} R8d4 {[%emt 0:00:54]} 35. Nf6+ {
[%emt 0:00:38]} Bxf6 {[%emt 0:00:06]} 36. exf6 {[%emt 0:00:04]} Re4 {[%emt 0:
03:47]} 37. Qg2 {[%emt 0:00:15]} Ne8 {[%emt 0:00:51]} 38. f5 {[%emt 0:01:47]}
exf5 {[%emt 0:02:49]} 39. Bg5 {[%emt 0:04:53]} Kf7 {[%emt 0:01:20]} 40. gxf5 {
[%emt 0:00:00]} gxf5 {[%emt 0:00:00]} 41. Rxf5 {[%emt 0:03:12]} Rxg3 {[%emt 0:
06:18]} 42. Qxg3 {[%emt 0:00:05]} Re2+ {[%emt 0:01:07]} 43. Rf2 {[%emt 0:00:38]
} Qe4 {[%emt 0:02:37]} 44. Rxe2 {[%emt 0:06:12]} Qxe2+ {[%emt 0:00:03]} 45. Qg2
{[%emt 0:00:05]} Qxg2+ {[%emt 0:04:15]} 46. Kxg2 {[%emt 0:00:05]} Nxf6 {[%emt
0:00:35]} 47. Kf3 {[%emt 0:00:44]} Ke6 {[%emt 0:04:18]} 48. Bd2 {[%emt 0:11:14]
} a6 {[%emt 0:12:04]} 49. Kf4 {[%emt 0:04:26]} b5 {[%emt 0:03:50]} 50. axb5 {
[%emt 0:01:31]} axb5 {[%emt 0:00:02]} 51. Be1 {[%emt 0:01:28]} b4 {[%emt 0:01:
53]} 52. Ke3 {[%emt 0:00:12]} Ke5 {[%emt 0:00:25]} 53. Kd2 {[%emt 0:01:52]} Nd5
{[%emt 0:00:26]} 54. Bf2 {[%emt 0:00:21]} Ke4 {[%emt 0:00:10]} 55. Bc5 {[%emt
0:00:10]} Ke5 {[%emt 0:02:05]} 56. Kc2 {[%emt 0:00:22]} b3+ {[%emt 0:00:21]}
57. Kd2 {[%emt 0:00:12]} Ke6 {[%emt 0:00:33]} 58. Bd4 {[%emt 0:00:24]} Kd6 {
[%emt 0:00:43]} 59. Bg7 {[%emt 0:00:14]} Kc5 {[%emt 0:00:32]} 60. Bf8+ {[%emt
0:00:10]} Kd4 {[%emt 0:00:17]} 61. Bg7+ {[%emt 0:00:08]} Ke4 {[%emt 0:00:08]}
62. Bh8 {[%emt 0:00:33]} Nf4 {[%emt 0:00:21]} 63. Kc3 {[%emt 0:00:24]} Kd5 {
[%emt 0:00:04]} 64. Kd2 {[%emt 0:00:17]} Kc5 {[%emt 0:02:23]} 65. Bg7 {[%emt 0:
00:14]} Nd5 {[%emt 0:00:25]} 66. Bf8+ {[%emt 0:00:12]} Kc6 {[%emt 0:00:16]} 67.
Bg7 {[%emt 0:00:08]} Kd7 {[%emt 0:00:06]} 68. Bd4 {[%emt 0:00:12]} Ke7 {[%emt
0:00:07]} 69. Bg7 {[%emt 0:00:27]} Kf7 {[%emt 0:00:04]} 70. Bh8 {[%emt 0:00:54]
} Kg6 {[%emt 0:00:05]} 71. Bg7 {[%emt 0:00:05]} Kg5 {[%emt 0:00:06]} 72. Bf8 {
[%emt 0:00:59]} Kf4 {[%emt 0:00:38]} 73. Bg7 {[%emt 0:00:16]} Ke4 {[%emt 0:00:
11]} 74. Bh8 {[%emt 0:00:29]} Ne7 {[%emt 0:00:34]} 75. Kc3 {[%emt 0:00:19]} Kd5
{[%emt 0:00:03]} 76. Bg7 {[%emt 0:00:24]} Nf5 {[%emt 0:00:04]} 77. Kd2 {[%emt
0:00:33]} Ng3 {[%emt 0:01:02]} 78. Kc3 {[%emt 0:00:22]} Kc5 {[%emt 0:02:00]}
79. Kd2 {[%emt 0:01:11]} Ne4+ {[%emt 0:00:11]} 80. Kc1 {[%emt 0:03:40]} Kd5 {
[%emt 0:01:24]} 81. Kd1 {[%emt 0:00:11]} Ke6 {[%emt 0:00:10]} 82. Kc1 {[%emt 0:
00:28]} Kf5 {[%emt 0:00:08]} 83. Kd1 {[%emt 0:00:08]} Kf4 {[%emt 0:00:08]} 84.
Bd4 {[%emt 0:00:18]} Kf3 {[%emt 0:00:16]} 85. Ba7 {[%emt 0:01:58]} Kg4 {[%emt
0:02:34]} 86. Bd4 {[%emt 0:00:08]} Kf4 {[%emt 0:00:51]} 87. Kc1 {[%emt 0:01:12]
} Kg5 {[%emt 0:00:29]} 88. Bg7 {[%emt 0:00:10]} Kg4 {[%emt 0:00:32]} 89. Kd1 {
[%emt 0:01:02]} Kg3 {[%emt 0:00:18]} 90. Be5+ {[%emt 0:00:24]} Kg2 {[%emt 0:00:
16]} 91. Bg7 {[%emt 0:00:30]} Kg3 {[%emt 0:00:46]} 92. Be5+ {[%emt 0:00:10]}
Kf3 {[%emt 0:00:05]} 93. Bd4 {[%emt 0:00:07]} Nd6 {[%emt 0:00:12]} 94. Kd2 {
[%emt 0:00:08]} Ke4 {[%emt 0:00:55]} 95. Bg7 {[%emt 0:00:15]} Kd5 {[%emt 0:00:
41]} 96. Kc3 {[%emt 0:00:23]} *

[Event "ETCC Open 2013"]
[Site "Warsaw"]
[Date "2013.11.11"]
[Round "4"]
[White "Swiercz, Dariusz"]
[Black "Pavasovic, Dusko"]
[Result "1/2-1/2"]
[ECO "A13"]
[WhiteElo "2627"]
[BlackElo "2563"]
[PlyCount "114"]
[EventDate "2013.??.??"]
[EventCountry "POL"]
[WhiteTeam "Polen"]
[BlackTeam "Slowenien"]
[WhiteTeamCountry "POL"]
[BlackTeamCountry "SLO"]
[TimeControl "40/5400+30:1800+30"]

1. c4 {[%emt 0:00:00]} e6 {[%emt 0:00:00]} 2. Nf3 {[%emt 0:00:00]} d5 {[%emt 0:
00:00]} 3. g3 {[%emt 0:00:00]} dxc4 {[%emt 0:00:00]} 4. Qa4+ {[%emt 0:00:46]}
Nd7 {[%emt 0:00:47]} 5. Bg2 {[%emt 0:01:19]} Ngf6 {[%emt 0:01:54]} 6. Qxc4 {
[%emt 0:03:45]} c5 {[%emt 0:00:15]} 7. O-O {[%emt 0:02:49]} b6 {[%emt 0:08:16]}
8. Ng5 {[%emt 0:07:30]} Rb8 {[%emt 0:04:01]} 9. d3 {[%emt 0:00:39]} h6 {[%emt
0:27:24]} 10. Ne4 {[%emt 0:11:01]} Nxe4 {[%emt 0:02:34]} 11. dxe4 {[%emt 0:00:
09]} b5 {[%emt 0:04:28]} 12. Qc2 {[%emt 0:00:50]} Qc7 {[%emt 0:16:49]} 13. a4 {
[%emt 0:13:30]} a6 {[%emt 0:00:17]} 14. axb5 {[%emt 0:00:24]} axb5 {[%emt 0:00:
05]} 15. Rd1 {[%emt 0:11:05]} Bd6 {[%emt 0:04:10]} 16. Nc3 {[%emt 0:15:41]} O-O
{[%emt 0:00:56]} 17. Be3 {[%emt 0:08:11]} Be5 {[%emt 0:04:21]} 18. Rac1 {[%emt
0:02:32]} c4 {[%emt 0:16:52]} 19. f4 {[%emt 0:00:50]} Bd6 {[%emt 0:00:22]} 20.
e5 {[%emt 0:01:09]} Bc5 {[%emt 0:00:04]} 21. Bxc5 {[%emt 0:00:37]} Nxc5 {[%emt
0:00:50]} 22. Rd6 {[%emt 0:00:45]} Qa7 {[%emt 0:00:49]} 23. Kf1 {[%emt 0:03:35]
} Bb7 {[%emt 0:01:11]} 24. Ne4 {[%emt 0:01:11]} Nxe4 {[%emt 0:02:50]} 25. Bxe4
{[%emt 0:00:02]} Qe3 {[%emt 0:00:25]} 26. Bxb7 {[%emt 0:00:36]} Rxb7 {[%emt 0:
00:05]} 27. Rcd1 {[%emt 0:00:26]} Rc7 {[%emt 0:01:49]} 28. Qc3 {[%emt 0:06:33]}
Qc5 {[%emt 0:00:14]} 29. Qd4 {[%emt 0:01:44]} Qxd4 {[%emt 0:00:47]} 30. R6xd4 {
[%emt 0:00:12]} Rfc8 {[%emt 0:01:14]} 31. Ke1 {[%emt 0:00:56]} b4 {[%emt 0:00:
38]} 32. Kd2 {[%emt 0:01:02]} Kf8 {[%emt 0:00:43]} 33. Ra1 {[%emt 0:02:11]} Ke7
{[%emt 0:00:29]} 34. Ra4 {[%emt 0:01:38]} Rb8 {[%emt 0:00:08]} 35. Kc2 {[%emt
0:00:22]} f6 {[%emt 0:00:58]} 36. exf6+ {[%emt 0:00:19]} Kxf6 {[%emt 0:00:07]}
37. g4 {[%emt 0:02:54]} Rb6 {[%emt 0:00:09]} 38. Re4 {[%emt 0:00:43]} Rc5 {
[%emt 0:00:49]} 39. e3 {[%emt 0:00:39]} h5 {[%emt 0:00:57]} 40. h3 {[%emt 0:00:
00]} hxg4 {[%emt 0:00:00]} 41. hxg4 {[%emt 0:00:22]} Rc7 {[%emt 0:05:08]} 42.
Rd4 {[%emt 0:07:02]} e5 {[%emt 0:07:35]} 43. fxe5+ {[%emt 0:09:55]} Kxe5 {
[%emt 0:00:09]} 44. Rf4 {[%emt 0:00:29]} Ke6 {[%emt 0:02:19]} 45. Ra8 {[%emt 0:
03:41]} c3 {[%emt 0:07:12]} 46. bxc3 {[%emt 0:04:39]} Rxc3+ {[%emt 0:04:48]}
47. Kb2 {[%emt 0:00:20]} Rc7 {[%emt 0:01:36]} 48. Re8+ {[%emt 0:00:25]} Kd7 {
[%emt 0:01:57]} 49. Ree4 {[%emt 0:03:02]} Re6 {[%emt 0:02:11]} 50. Rf7+ {[%emt
0:05:11]} Ke8 {[%emt 0:00:05]} 51. Rxg7 {[%emt 0:00:51]} Rxe4 {[%emt 0:00:41]}
52. Rxc7 {[%emt 0:00:04]} Rxe3 {[%emt 0:00:33]} 53. Rc4 {[%emt 0:00:06]} b3 {
[%emt 0:00:22]} 54. Rb4 {[%emt 0:00:03]} Kf7 {[%emt 0:00:16]} 55. g5 {[%emt 0:
00:14]} Kg6 {[%emt 0:00:10]} 56. Rxb3 {[%emt 0:00:03]} Rxb3+ {[%emt 0:00:05]}
57. Kxb3 {[%emt 0:00:02]} Kxg5 {[%emt 0:00:08]} 1/2-1/2

[Event "ETCC Women 2013"]
[Site "Warsaw"]
[Date "2013.11.11"]
[Round "4"]
[White "Dworakowska, Joanna"]
[Black "Vega Gutierrez, Sabrina"]
[Result "0-1"]
[ECO "B30"]
[WhiteElo "2326"]
[BlackElo "2385"]
[PlyCount "68"]
[EventDate "2013.??.??"]
[EventCountry "POL"]
[WhiteTeam "Polen"]
[BlackTeam "Spanien"]
[WhiteTeamCountry "POL"]
[BlackTeamCountry "ESP"]
[TimeControl "40/5400+30:1800+30"]

1. e4 c5 2. Nf3 Nc6 3. g3 Nf6 4. d3 d6 5. Bg2 g6 6. O-O Bg7 7. c3 c4 8. d4 Nxe4
9. d5 Na5 10. Nd4 Nf6 11. b4 cxb3 12. axb3 Bd7 13. Re1 O-O 14. Nd2 Qc7 15. Bb2
Rfe8 16. c4 e5 17. dxe6 fxe6 18. Nb5 Bxb5 19. cxb5 d5 20. Be5 Qb6 21. Qe2 a6
22. b4 Nc4 23. Nxc4 dxc4 24. bxa6 Rxa6 25. Qxc4 Rxa1 26. Bxa1 Nh5 27. Bd5 Bxa1
28. Rxe6 Rxe6 29. Bxe6+ Kg7 30. g4 Nf4 31. Bc8 Nh3+ 32. Kg2 Qxf2+ 33. Kxh3 Be5
34. g5 Qxh2+ 0-1

[Event "ETCC Women 2013"]
[Site "Warsaw"]
[Date "2013.11.11"]
[Round "4"]
[White "Bhatia, Kanwal K"]
[Black "Gueci, Tea"]
[Result "0-1"]
[ECO "B06"]
[WhiteElo "2039"]
[BlackElo "2056"]
[PlyCount "52"]
[EventDate "2013.??.??"]
[EventCountry "POL"]
[WhiteTeam "England"]
[BlackTeam "Italien"]
[WhiteTeamCountry "ENG"]
[BlackTeamCountry "ITA"]
[TimeControl "40/5400+30:1800+30"]

1. e4 {[%emt 0:00:00]} g6 {[%emt 0:00:00]} 2. d4 {[%emt 0:00:00]} Bg7 {[%emt 0:
00:05]} 3. Nc3 {[%emt 0:00:07]} d6 {[%emt 0:00:30]} 4. Bg5 {[%emt 0:00:00]} c6
{[%emt 0:00:51]} 5. Nf3 {[%emt 0:00:25]} Qb6 {[%emt 0:02:16]} 6. Qd2 {[%emt 0:
01:13]} Qxb2 {[%emt 0:13:24]} 7. Rb1 {[%emt 0:00:22]} Qa3 {[%emt 0:00:09]} 8.
Bc4 {[%emt 0:02:24]} Nd7 {[%emt 0:09:29]} 9. O-O {[%emt 0:01:28]} Ngf6 {[%emt
0:02:43]} 10. e5 {[%emt 0:21:32]} dxe5 {[%emt 0:01:52]} 11. dxe5 {[%emt 0:00:
44]} Ng4 {[%emt 0:00:32]} 12. e6 {[%emt 0:19:49]} fxe6 {[%emt 0:04:24]} 13. Ne4
{[%emt 0:00:50]} Nde5 {[%emt 0:06:15]} 14. Nxe5 {[%emt 0:02:47]} Nxe5 {[%emt 0:
01:18]} 15. Be2 {[%emt 0:10:17]} Nf7 {[%emt 0:07:58]} 16. Be3 {[%emt 0:04:45]}
b6 {[%emt 0:03:18]} 17. Bd4 {[%emt 0:05:20]} e5 {[%emt 0:01:19]} 18. Bc3 {
[%emt 0:06:38]} Qxa2 {[%emt 0:12:28]} 19. Rb3 {[%emt 0:04:41]} Be6 {[%emt 0:02:
02]} 20. Bg4 {[%emt 0:02:34]} Rd8 {[%emt 0:09:06]} 21. Qe2 {[%emt 0:02:56]}
Bxb3 {[%emt 0:00:41]} 22. Ra1 {[%emt 0:00:58]} Qxc2 {[%emt 0:00:43]} 23. Rxa7 {
[%emt 0:00:21]} Qb1+ {[%emt 0:04:29]} 24. Be1 {[%emt 0:01:40]} Rd1 {[%emt 0:02:
42]} 25. Ra8+ {[%emt 0:00:29]} Nd8 {[%emt 0:00:13]} 26. Kf1 {[%emt 0:04:28]}
Bc4 {[%emt 0:00:23]} 0-1

[Event "ETCC Women 2013"]
[Site "Warsaw"]
[Date "2013.11.11"]
[Round "4"]
[White "Corke, Anya S"]
[Black "Brunello, Marina"]
[Result "0-1"]
[ECO "D10"]
[WhiteElo "2276"]
[BlackElo "2248"]
[PlyCount "54"]
[EventDate "2013.??.??"]
[EventCountry "POL"]
[WhiteTeam "England"]
[BlackTeam "Italien"]
[WhiteTeamCountry "ENG"]
[BlackTeamCountry "ITA"]
[TimeControl "40/5400+30:1800+30"]

1. c4 {[%emt 0:00:00]} c6 {[%emt 0:00:00]} 2. Nf3 {[%emt 0:00:07]} d5 {[%emt 0:
00:18]} 3. d4 {[%emt 0:01:44]} Nf6 {[%emt 0:00:19]} 4. cxd5 {[%emt 0:00:13]}
cxd5 {[%emt 0:00:10]} 5. Nc3 {[%emt 0:00:06]} Nc6 {[%emt 0:02:00]} 6. Bf4 {
[%emt 0:00:32]} a6 {[%emt 0:00:24]} 7. e3 {[%emt 0:00:29]} Bg4 {[%emt 0:02:29]}
8. a3 {[%emt 0:01:59]} Bxf3 {[%emt 0:01:42]} 9. gxf3 {[%emt 0:05:06]} e6 {
[%emt 0:04:14]} 10. Rc1 {[%emt 0:06:16]} Bd6 {[%emt 0:06:32]} 11. Bxd6 {[%emt
0:00:33]} Qxd6 {[%emt 0:00:05]} 12. f4 {[%emt 0:00:32]} O-O {[%emt 0:00:59]}
13. Bd3 {[%emt 0:01:07]} b5 {[%emt 0:04:21]} 14. b4 {[%emt 0:06:57]} Rac8 {
[%emt 0:04:37]} 15. O-O {[%emt 0:07:51]} Nb8 {[%emt 0:02:15]} 16. Qb3 {[%emt 0:
08:25]} Nc6 {[%emt 0:07:26]} 17. Nb1 {[%emt 0:14:39]} Nxd4 {[%emt 0:25:22]} 18.
exd4 {[%emt 0:04:43]} Rxc1 {[%emt 0:02:58]} 19. Rxc1 {[%emt 0:00:06]} Qxf4 {
[%emt 0:00:03]} 20. Qb2 {[%emt 0:07:47]} Ng4 {[%emt 0:01:03]} 21. Qd2 {[%emt 0:
03:46]} Qxh2+ {[%emt 0:01:03]} 22. Kf1 {[%emt 0:00:01]} e5 {[%emt 0:03:54]} 23.
Bf5 {[%emt 0:03:51]} exd4 {[%emt 0:04:03]} 24. Bxg4 {[%emt 0:02:10]} Qh1+ {
[%emt 0:00:35]} 25. Ke2 {[%emt 0:00:46]} Re8+ {[%emt 0:00:10]} 26. Qe3 {[%emt
0:01:22]} Rxe3+ {[%emt 0:00:11]} 27. Kd2 {[%emt 0:00:11]} Rd3+ {[%emt 0:00:11]}
0-1

[Event "ETCC Women 2013"]
[Site "Warsaw"]
[Date "2013.11.11"]
[Round "4"]
[White "Gronnestad, Anita"]
[Black "Thorsteinsdottir, Hallgerdur"]
[Result "1-0"]
[ECO "A15"]
[WhiteElo "1958"]
[BlackElo "1951"]
[PlyCount "109"]
[EventDate "2013.??.??"]
[EventCountry "POL"]
[WhiteTeam "Norwegen"]
[BlackTeam "Island"]
[WhiteTeamCountry "NOR"]
[BlackTeamCountry "ISL"]
[TimeControl "40/5400+30:1800+30"]

1. c4 {[%emt 0:00:00]} Nf6 {[%emt 0:00:00]} 2. g3 {[%emt 0:00:00]} g6 {[%emt 0:
00:02]} 3. Bg2 {[%emt 0:00:06]} d5 {[%emt 0:00:48]} 4. Nf3 {[%emt 0:00:40]} Bg7
{[%emt 0:00:34]} 5. cxd5 {[%emt 0:01:36]} Nxd5 {[%emt 0:00:34]} 6. Nc3 {[%emt
0:00:33]} Nb6 {[%emt 0:01:02]} 7. O-O {[%emt 0:01:48]} O-O {[%emt 0:01:53]} 8.
d3 {[%emt 0:00:56]} Nc6 {[%emt 0:03:39]} 9. a3 {[%emt 0:05:33]} a5 {[%emt 0:07:
15]} 10. Be3 {[%emt 0:19:38]} Nd4 {[%emt 0:04:54]} 11. Nxd4 {[%emt 0:04:44]}
Bxd4 {[%emt 0:00:12]} 12. Bh6 {[%emt 0:09:04]} Bg7 {[%emt 0:11:35]} 13. Qd2 {
[%emt 0:03:15]} c6 {[%emt 0:01:15]} 14. Rac1 {[%emt 0:10:59]} Be6 {[%emt 0:05:
17]} 15. Ne4 {[%emt 0:02:15]} Bd5 {[%emt 0:04:30]} 16. h4 {[%emt 0:02:15]} Bxh6
{[%emt 0:16:06]} 17. Qxh6 {[%emt 0:00:11]} Bxe4 {[%emt 0:00:18]} 18. Bxe4 {
[%emt 0:01:47]} Qd4 {[%emt 0:00:22]} 19. h5 {[%emt 0:06:16]} Rfd8 {[%emt 0:03:
21]} 20. hxg6 {[%emt 0:03:38]} hxg6 {[%emt 0:00:16]} 21. Kg2 {[%emt 0:02:51]}
Nd5 {[%emt 0:05:07]} 22. Rh1 {[%emt 0:03:41]} Qg7 {[%emt 0:03:54]} 23. Qh4 {
[%emt 0:08:53]} Qf6 {[%emt 0:01:07]} 24. Qh7+ {[%emt 0:01:03]} Kf8 {[%emt 0:00:
07]} 25. Bxd5 {[%emt 0:01:05]} cxd5 {[%emt 0:00:57]} 26. Qh8+ {[%emt 0:02:52]}
Qxh8 {[%emt 0:00:06]} 27. Rxh8+ {[%emt 0:00:03]} Kg7 {[%emt 0:00:06]} 28. Rxd8
{[%emt 0:00:07]} Rxd8 {[%emt 0:00:06]} 29. Rc7 {[%emt 0:00:18]} b6 {[%emt 0:11:
08]} 30. Rxe7 {[%emt 0:00:20]} Kf6 {[%emt 0:01:49]} 31. Rb7 {[%emt 0:00:36]}
Rd6 {[%emt 0:00:11]} 32. Kf3 {[%emt 0:01:04]} Ke6 {[%emt 0:01:05]} 33. g4 {
[%emt 0:01:19]} g5 {[%emt 0:03:58]} 34. Rc7 {[%emt 0:02:31]} Kf6 {[%emt 0:00:
36]} 35. b4 {[%emt 0:01:47]} axb4 {[%emt 0:02:30]} 36. axb4 {[%emt 0:00:05]}
Ke6 {[%emt 0:03:17]} 37. Ke3 {[%emt 0:00:21]} Kf6 {[%emt 0:02:39]} 38. Kd4 {
[%emt 0:00:19]} Ke6 {[%emt 0:00:43]} 39. e3 {[%emt 0:01:09]} Kf6 {[%emt 0:03:
00]} 40. f4 {[%emt 0:00:00]} Kg6 {[%emt 0:00:00]} 41. f5+ {[%emt 0:02:24]} Kg7
{[%emt 0:08:05]} 42. Ke5 {[%emt 0:02:59]} Rd8 {[%emt 0:01:20]} 43. Rc6 {[%emt
0:01:36]} Re8+ {[%emt 0:01:43]} 44. Kd4 {[%emt 0:00:25]} b5 {[%emt 0:00:30]}
45. Rc1 {[%emt 0:08:41]} Kf6 {[%emt 0:09:03]} 46. Rh1 {[%emt 0:01:11]} Ra8 {
[%emt 0:01:22]} 47. Kxd5 {[%emt 0:01:41]} Ra2 {[%emt 0:00:47]} 48. Rg1 {[%emt
0:00:35]} Ra3 {[%emt 0:00:17]} 49. Rd1 {[%emt 0:01:20]} Ra2 {[%emt 0:00:24]}
50. e4 {[%emt 0:06:25]} Rg2 {[%emt 0:01:40]} 51. e5+ {[%emt 0:00:13]} Ke7 {
[%emt 0:00:00]} 52. f6+ {[%emt 0:01:20]} Kd7 {[%emt 0:00:48]} 53. Ra1 {[%emt 0:
00:29]} Rxg4 {[%emt 0:01:19]} 54. Ra7+ {[%emt 0:00:19]} Ke8 {[%emt 0:05:04]}
55. e6 {[%emt 0:00:30]} 1-0

[Event "ETCC Women 2013"]
[Site "Warsaw"]
[Date "2013.11.11"]
[Round "4"]
[White "Johannsdottir, Johanna Bjorg"]
[Black "Machlik, Monika"]
[Result "0-1"]
[ECO "B04"]
[WhiteElo "1901"]
[BlackElo "1936"]
[PlyCount "72"]
[EventDate "2013.??.??"]
[EventCountry "POL"]
[WhiteTeam "Island"]
[BlackTeam "Norwegen"]
[WhiteTeamCountry "ISL"]
[BlackTeamCountry "NOR"]
[TimeControl "40/5400+30:1800+30"]

1. e4 {[%emt 0:00:00]} Nf6 {[%emt 0:00:00]} 2. e5 {[%emt 0:00:00]} Nd5 {[%emt
0:00:00]} 3. d4 {[%emt 0:00:17]} d6 {[%emt 0:00:00]} 4. Nf3 {[%emt 0:00:18]} g6
{[%emt 0:00:00]} 5. Bc4 {[%emt 0:00:21]} Nb6 {[%emt 0:00:05]} 6. Bb3 {[%emt 0:
00:04]} Bg7 {[%emt 0:00:10]} 7. O-O {[%emt 0:00:25]} Nc6 {[%emt 0:01:49]} 8.
exd6 {[%emt 0:00:37]} cxd6 {[%emt 0:01:06]} 9. h3 {[%emt 0:00:31]} O-O {[%emt
0:00:36]} 10. Bg5 {[%emt 0:01:31]} h6 {[%emt 0:13:03]} 11. Be3 {[%emt 0:01:11]}
Na5 {[%emt 0:01:47]} 12. Nc3 {[%emt 0:02:29]} Nbc4 {[%emt 0:13:27]} 13. Bf4 {
[%emt 0:09:40]} g5 {[%emt 0:18:46]} 14. Bg3 {[%emt 0:04:52]} Bf5 {[%emt 0:04:
39]} 15. Bxc4 {[%emt 0:03:56]} Nxc4 {[%emt 0:00:11]} 16. Qe2 {[%emt 0:00:37]}
Rc8 {[%emt 0:03:08]} 17. Ne4 {[%emt 0:05:28]} Nxb2 {[%emt 0:15:37]} 18. c3 {
[%emt 0:04:28]} Nc4 {[%emt 0:02:11]} 19. Rac1 {[%emt 0:01:15]} Rc7 {[%emt 0:05:
48]} 20. Nh2 {[%emt 0:01:27]} Bxe4 {[%emt 0:00:27]} 21. Qxe4 {[%emt 0:00:12]}
Nd2 {[%emt 0:00:14]} 22. Qe3 {[%emt 0:01:08]} Nxf1 {[%emt 0:00:07]} 23. Kxf1 {
[%emt 0:00:05]} Qd7 {[%emt 0:00:44]} 24. f4 {[%emt 0:00:50]} Qb5+ {[%emt 0:00:
32]} 25. Kg1 {[%emt 0:00:20]} Rfc8 {[%emt 0:01:43]} 26. Re1 {[%emt 0:01:19]}
Rxc3 {[%emt 0:01:40]} 27. Qxe7 {[%emt 0:00:53]} Rxg3 {[%emt 0:00:37]} 28. Ng4 {
[%emt 0:00:55]} Qd5 {[%emt 0:02:29]} 29. Re4 {[%emt 0:00:53]} Qxa2 {[%emt 0:02:
34]} 30. Re2 {[%emt 0:00:15]} Qc4 {[%emt 0:04:17]} 31. fxg5 {[%emt 0:01:54]}
hxg5 {[%emt 0:01:09]} 32. Kh2 {[%emt 0:01:09]} Rxg4 {[%emt 0:01:41]} 33. hxg4 {
[%emt 0:00:07]} Qxd4 {[%emt 0:01:18]} 34. Qxg5 {[%emt 0:00:47]} Qf6 {[%emt 0:
00:46]} 35. Qb5 {[%emt 0:00:36]} Qh6+ {[%emt 0:00:27]} 36. Kg1 {[%emt 0:00:06]}
Bd4+ {[%emt 0:00:23]} 0-1

[Event "ETCC Women 2013"]
[Site "Warsaw"]
[Date "2013.11.11"]
[Round "4"]
[White "Messina, Roberta"]
[Black "Grigoryan, Meri"]
[Result "1-0"]
[ECO "A11"]
[WhiteElo "2064"]
[BlackElo "2039"]
[PlyCount "105"]
[EventDate "2013.??.??"]
[EventCountry "POL"]
[WhiteTeam "Italien"]
[BlackTeam "England"]
[WhiteTeamCountry "ITA"]
[BlackTeamCountry "ENG"]
[TimeControl "40/5400+30:1800+30"]

1. c4 {[%emt 0:00:00]} c6 {[%emt 0:00:00]} 2. g3 {[%emt 0:00:00]} d5 {[%emt 0:
00:10]} 3. Bg2 {[%emt 0:00:17]} e6 {[%emt 0:00:19]} 4. Nf3 {[%emt 0:00:20]} Nd7
{[%emt 0:00:18]} 5. b3 {[%emt 0:00:28]} f5 {[%emt 0:01:33]} 6. cxd5 {[%emt 0:
05:07]} cxd5 {[%emt 0:01:51]} 7. Bb2 {[%emt 0:03:43]} Ngf6 {[%emt 0:00:20]} 8.
Nc3 {[%emt 0:02:25]} a6 {[%emt 0:01:30]} 9. d4 {[%emt 0:03:23]} Ne4 {[%emt 0:
03:17]} 10. O-O {[%emt 0:01:31]} Bd6 {[%emt 0:01:26]} 11. Nd2 {[%emt 0:02:00]}
O-O {[%emt 0:03:51]} 12. Ndxe4 {[%emt 0:03:10]} fxe4 {[%emt 0:12:00]} 13. f3 {
[%emt 0:01:44]} exf3 {[%emt 0:05:31]} 14. exf3 {[%emt 0:01:23]} b5 {[%emt 0:05:
50]} 15. Qe2 {[%emt 0:10:29]} Nf6 {[%emt 0:02:28]} 16. Kh1 {[%emt 0:07:03]} Kh8
{[%emt 0:02:36]} 17. Nd1 {[%emt 0:02:43]} Bd7 {[%emt 0:02:32]} 18. Nf2 {[%emt
0:01:53]} Bxg3 {[%emt 0:11:26]} 19. hxg3 {[%emt 0:02:34]} Nh5 {[%emt 0:01:55]}
20. Kh2 {[%emt 0:04:42]} Qg5 {[%emt 0:05:27]} 21. Ng4 {[%emt 0:14:01]} Nxg3 {
[%emt 0:12:37]} 22. Kxg3 {[%emt 0:00:11]} Qf4+ {[%emt 0:00:02]} 23. Kf2 {[%emt
0:07:11]} Qxg4 {[%emt 0:00:09]} 24. Rh1 {[%emt 0:00:53]} Rf6 {[%emt 0:09:57]}
25. Ke1 {[%emt 0:02:43]} Qg3+ {[%emt 0:07:43]} 26. Qf2 {[%emt 0:00:18]} Qg6 {
[%emt 0:00:11]} 27. Rc1 {[%emt 0:07:11]} b4 {[%emt 0:01:58]} 28. Rh3 {[%emt 0:
08:08]} Raf8 {[%emt 0:03:20]} 29. Qc2 {[%emt 0:02:27]} Rf5 {[%emt 0:00:13]} 30.
a3 {[%emt 0:04:22]} Bb5 {[%emt 0:01:06]} 31. Qf2 {[%emt 0:01:07]} Rg5 {[%emt 0:
00:30]} 32. Rc2 {[%emt 0:01:09]} Bd3 {[%emt 0:00:30]} 33. Rd2 {[%emt 0:00:26]}
Rc8 {[%emt 0:01:25]} 34. f4 {[%emt 0:00:33]} bxa3 {[%emt 0:02:22]} 35. Bxa3 {
[%emt 0:00:39]} Bf5 {[%emt 0:00:34]} 36. fxg5 {[%emt 0:00:24]} Bxh3 {[%emt 0:
00:12]} 37. Bxh3 {[%emt 0:00:33]} Qe4+ {[%emt 0:00:06]} 38. Qe2 {[%emt 0:00:28]
} Qh4+ {[%emt 0:00:01]} 39. Qf2 {[%emt 0:00:32]} Qxh3 {[%emt 0:00:06]} 40. Rc2
{[%emt 0:00:00]} Rb8 {[%emt 0:00:00]} 41. Bd6 {[%emt 0:08:15]} Rd8 {[%emt 0:08:
20]} 42. Qg3 {[%emt 0:09:01]} Qh1+ {[%emt 0:10:11]} 43. Kd2 {[%emt 0:00:10]}
Qf1 {[%emt 0:05:05]} 44. Qe5 {[%emt 0:05:47]} Qb5 {[%emt 0:06:10]} 45. b4 {
[%emt 0:01:18]} Qe8 {[%emt 0:01:33]} 46. Rc7 {[%emt 0:00:58]} Rd7 {[%emt 0:00:
40]} 47. Rc3 {[%emt 0:01:25]} Kg8 {[%emt 0:00:53]} 48. Re3 {[%emt 0:01:16]} Qf7
{[%emt 0:00:26]} 49. Bc5 {[%emt 0:01:17]} h6 {[%emt 0:03:14]} 50. gxh6 {[%emt
0:00:47]} gxh6 {[%emt 0:00:02]} 51. Qxe6 {[%emt 0:00:39]} Kh7 {[%emt 0:00:40]}
52. Qxf7+ {[%emt 0:00:11]} Rxf7 {[%emt 0:00:01]} 53. Re7 {[%emt 0:00:28]} 1-0